bitfinex/quotes_ETHUSD_20241116
["timestamp","ask_amount","ask_price","bid_price","bid_amount"]
[1731762255694,3.14497,3179.7,3179.0,3.14563]
[1731762256140,3.14506,3179.6,3179.0,3.14563]
[1731762256742,3.14486,3179.8,3179.0,3.14556]
[1731762256906,3.14486,3179.8,3178.5,3.0]
[1731762256907,3.14486,3179.8,3179.1,3.14553]
[1731762257116,3.14476,3179.9,3179.2,3.14537]
[1731762257729,3.14463,3180.1,3179.2,3.14537]
[1731762258060,3.14463,3180.1,3179.3,0.314537]
[1731762258219,3.14463,3180.1,3179.4,3.14524]
[1731762258593,0.64298204,3179.8,3179.3,0.314537]
[1731762258793,0.64298204,3179.8,3179.3,3.14534]
[1731762258992,3.78785204,3179.8,3179.1,3.14549]
[1731762259235,3.14502,3179.7,3179.0,3.14555]
[1731762259433,0.64298204,3179.8,3178.8,3.0]
[1731762259644,3.78784204,3179.8,3178.5,3.14612]
[1731762259845,3.78784204,3179.8,3178.2,3.14639]
[1731762259846,3.14557,3179.1,3178.2,3.14639]
[1731762259993,3.14557,3179.1,3177.7,3.64574696]
[1731762260192,3.14581,3178.9,3178.2,3.14636]
[1731762261003,3.14594,3178.7,3178.0,3.14659]
[1731762261232,3.14584,3178.8,3178.1,3.14647]
[1731762261600,3.14584,3178.8,3177.9,3.14667]
[1731762262204,3.14604,3178.6,3178.0,3.0]
[1731762262399,3.14604,3178.6,3178.0,3.14661]
[1731762262604,3.14584,3178.8,3178.1,3.1465]
[1731762262803,3.14595,3178.7,3178.1,3.1465]
[1731762263702,3.14595,3178.7,3177.7,3.0]
[1731762263947,3.14596,3178.7,3177.8,0.06292758]
[1731762264147,0.01,3179.5,3178.0,3.14663]
[1731762264148,3.14604,3178.6,3178.0,3.14663]
[1731762264391,3.14604,3178.6,3177.9,3.14671]
[1731762264548,3.14615,3178.5,3177.8,3.20974758]
[1731762264847,3.14615,3178.5,3177.9,3.14672]
[1731762265041,3.14595,3178.7,3177.9,3.14672]
[1731762265243,3.14595,3178.7,3178.0,3.1466]
[1731762265403,3.14549,3179.2,3178.0,3.1466]
[1731762265404,3.14604,3178.6,3178.0,3.1466]
[1731762265951,3.14615,3178.5,3177.8,6.14676]
[1731762266927,3.14615,3178.5,3177.9,3.14671]
[1731762268159,3.14594,3178.7,3178.0,3.14654]
[1731762268735,3.14566,3179.0,3178.4,3.14622]
[1731762269546,3.14566,3179.0,3178.4,38.14622]
[1731762269767,3.14537,3179.3,3178.4,38.14622]
[1731762270249,3.14565,3179.0,3178.4,38.14622]
[1731762270822,3.14565,3179.0,3178.2,3.14643]
[1731762271138,3.14546,3179.2,3178.0,3.14663]
[1731762271139,3.14602,3178.7,3178.0,3.14663]
[1731762271969,3.14575,3178.9,3178.0,3.14663]
[1731762272128,3.14614,3178.5,3177.9,6.14664]
[1731762272654,3.14624,3178.4,3178.0,35.0]
[1731762272834,3.14609,3178.6,3178.0,35.0]
[1731762273865,3.14616,3178.5,3178.0,35.0]
[1731762274221,3.14616,3178.5,3177.5,3.0]
[1731762274541,3.14637,3178.3,3177.7,3.0]
[1731762274754,3.14637,3178.3,3177.6,3.147]
[1731762274755,3.14637,3178.3,3177.8,35.0]
[1731762274927,1.257902,3178.8,3177.8,35.0]
[1731762274928,3.14644,3178.2,3177.8,35.0]
[1731762275127,3.14664,3178.0,3177.8,35.0]
[1731762275451,3.14664,3178.0,3177.5,3.0]
[1731762275621,3.14644,3178.2,3177.5,6.14711]
[1731762275825,3.14653,3178.1,3177.6,35.0]
[1731762277027,3.14677,3177.9,3177.2,3.1474]
[1731762277366,3.14693,3177.7,3177.1,3.14748]
[1731762277669,3.14678,3177.9,3177.2,3.14742]
[1731762277985,3.14656,3178.1,3177.2,3.14742]
[1731762277986,3.14683,3177.8,3177.2,3.14742]
[1731762278522,3.14665,3178.0,3177.2,3.14742]
[1731762278751,3.14684,3177.8,3177.2,3.14742]
[1731762279624,3.14685,3177.8,3177.2,3.14742]
[1731762281065,3.6247017,3178.6,3177.1,0.629518]
[1731762281066,3.14694,3177.7,3177.1,0.629518]
[1731762281368,3.14694,3177.7,3177.2,3.14099947]
[1731762281577,3.14694,3177.7,3177.1,3.777028]
[1731762281950,3.14694,3177.7,3177.1,3.14751]
[1731762282142,3.14686,3177.8,3177.2,35.0]
[1731762282343,3.14673,3177.9,3177.3,3.14729]
[1731762283765,3.14663,3178.0,3177.2,38.14742]
[1731762284063,3.14689,3177.8,3177.2,35.0]
[1731762284543,3.14689,3177.8,3177.2,38.14741]
[1731762284738,3.14663,3178.0,3177.2,41.28840947]
[1731762284963,0.61359803,3178.6,3177.5,3.01110367]
[1731762285272,3.14612,3178.6,3177.9,3.14665]
[1731762285564,3.14612,3178.6,3177.9,3.776008]
[1731762285775,3.14612,3178.6,3177.9,3.14665]
[1731762285978,3.14614,3178.5,3177.9,3.14665]
[1731762286281,3.14625,3178.4,3177.7,3.14693]
[1731762286441,3.14625,3178.4,3177.8,3.14682]
[1731762287161,3.14608,3178.6,3177.9,3.14672]
[1731762287478,3.14614,3178.5,3177.9,3.14672]
[1731762288066,3.14596,3178.7,3177.9,3.14672]
[1731762288384,3.14595,3178.7,3178.1,3.14643]
[1731762288686,3.14584,3178.8,3178.1,3.14643]
[1731762289181,3.14565,3179.0,3178.3,3.14626]
[1731762289412,3.14575,3178.9,3178.3,3.14626]
[1731762289547,3.14596,3178.7,3178.1,3.14646]
[1731762289752,3.14596,3178.7,3177.5,3.01110367]
[1731762289753,6.16624367,3179.5,3177.7,3.14689]
[1731762289943,3.14631,3178.4,3177.8,3.0]
[1731762290356,3.14607,3178.6,3177.4,3.14722]
[1731762290553,0.63209223,3179.1,3177.3,3.0]
[1731762290554,3.14564,3179.0,3177.8,3.14675]
[1731762290756,3.14564,3179.0,3177.6,3.14701]
[1731762290757,3.14618,3178.5,3177.6,3.14699]
[1731762291048,3.14618,3178.5,3177.7,3.06293034]
[1731762291550,3.14618,3178.5,3177.7,3.0]
[1731762292074,3.14618,3178.5,3177.9,3.14673]
[1731762293149,3.14595,3178.7,3177.7,0.06293035]
[1731762293349,3.14595,3178.7,3178.1,3.14652]
[1731762293546,3.14576,3178.9,3178.1,3.14652]
[1731762293993,6.29159,3178.9,3178.1,3.14652]
[1731762294292,3.1455,3179.2,3178.2,0.06292381]
[1731762294509,3.14555,3179.1,3178.4,3.14616]
[1731762294812,3.14555,3179.1,3178.5,3.1461]
[1731762296072,3.14524,3179.4,3178.6,3.146]
[1731762296284,0.01,3180.4,3179.1,3.14551]
[1731762296285,3.14425,3180.4,3179.1,3.14551]
[1731762296515,3.14497,3179.7,3179.1,3.14551]
[1731762296685,3.14484,3179.9,3179.1,3.14551]
[1731762297213,3.14477,3179.9,3179.2,3.14544]
[1731762298478,3.14477,3179.9,3179.0,38.14563]
[1731762299017,3.14496,3179.7,3179.0,38.14563]
[1731762299200,3.14496,3179.7,3179.0,35.0]
[1731762299376,3.14496,3179.7,3179.1,3.14553]
[1731762300901,0.61906768,3179.8,3178.7,3.14587]
[1731762301101,3.14558,3179.1,3178.6,3.0]
[1731762301580,3.1454,3179.3,3178.6,6.14602]
[1731762301780,3.1454,3179.3,3178.7,0.929213]
[1731762302044,3.14534,3179.3,3178.6,3.14598]
[1731762302324,3.14544,3179.2,3178.7,3.0]
[1731762302995,3.14544,3179.2,3178.5,3.0]
[1731762303230,3.14525,3179.4,3178.7,3.14591]
[1731762303628,3.14525,3179.4,3178.8,3.14581]
[1731762303790,0.61906768,3179.8,3178.7,3.99209923]
[1731762303989,0.61906768,3179.8,3179.2,3.14537]
[1731762304407,0.61906768,3179.8,3179.3,3.14534]
[1731762304955,0.61906768,3179.8,3178.7,3.01110367]
[1731762304956,0.61906768,3179.8,3179.1,3.14551]
[1731762305156,0.61906768,3179.8,3179.2,0.314551]
[1731762305458,0.61906768,3179.8,3179.5,3.14514]
[1731762306117,0.61906768,3179.8,3179.6,3.14497]
[1731762306665,0.61906768,3179.8,3179.5,3.14512]
[1731762307448,0.61906768,3179.8,3179.6,3.14503]
[1731762307654,0.61906768,3179.8,3179.5,3.14512]
[1731762308030,0.61906768,3179.8,3179.6,3.14499]
[1731762308348,0.61906768,3179.8,3179.6,3.78031078]
[1731762309355,0.61906768,3179.8,3179.6,3.14501]
[1731762309607,0.61906768,3179.8,3179.4,3.14517]
[1731762309800,3.14514,3179.5,3178.8,6.14574]
[1731762309962,3.14514,3179.5,3178.8,6.760314]
[1731762310168,3.14501,3179.7,3179.1,3.14548]
[1731762310699,0.61906768,3179.8,3179.2,3.14543]
[1731762311110,0.61906768,3179.8,3179.4,3.14516]
[1731762312019,3.76392768,3179.8,3179.2,3.14543]
[1731762312169,3.14468,3180.0,3179.3,3.14526]
[1731762312371,3.14467,3180.0,3179.3,3.14534]
[1731762312590,3.14454,3180.2,3179.4,3.14516]
[1731762312880,3.14438,3180.3,3180.2,0.0377916]
[1731762313526,0.01,3181.2,3180.2,0.0377916]
[1731762313527,3.14398,3180.7,3180.2,0.0377916]
[1731762313823,3.14396,3180.7,3180.2,0.0377916]
[1731762313972,0.63578781,3180.6,3180.5,3.14415]
[1731762314172,3.14369,3181.0,3180.3,3.14426]
[1731762314402,3.14386,3180.9,3180.3,0.63265816]
[1731762314589,3.14386,3180.9,3180.2,3.1821616]
[1731762314976,3.14368,3181.0,3180.3,3.14428]
[1731762316076,3.14355,3181.2,3180.4,3.14425]
[1731762316276,3.14355,3181.2,3180.2,3.1822316]
[1731762316512,0.62019888,3180.8,3180.2,3.1822316]
[1731762316678,0.62019888,3180.8,3180.2,0.0377916]
[1731762317405,0.62019888,3180.8,3180.4,3.14424]
[1731762317926,3.14362,3181.1,3180.4,3.14424]
[1731762318214,0.55,3181.5,3180.2,3.1821716]
[1731762318413,3.14377,3180.9,3180.2,6.32317107]
[1731762318616,3.14405,3180.7,3180.2,0.0377916]
[1731762319178,3.14379,3180.9,3180.2,3.1822416]
[1731762319720,3.14379,3180.9,3180.3,3.14435]
[1731762319917,0.63207985,3181.0,3180.4,3.14421]
[1731762320090,0.63207985,3181.0,3180.5,3.14412]
[1731762320296,0.63207985,3181.0,3180.5,3.14415]
[1731762320899,3.14393,3180.8,3180.2,0.0377916]
[1731762321104,0.63207985,3181.0,3180.5,3.14414]
[1731762321408,0.63207985,3181.0,3180.5,3.772989]
[1731762323636,0.63207985,3181.0,3180.5,0.628849]
[1731762323834,3.14309,3181.6,3180.6,0.06287538]
[1731762324147,3.2888672,3181.8,3180.8,3.14384]
[1731762324330,3.14297,3181.7,3180.7,38.14388]
[1731762324500,3.14335,3181.4,3180.8,3.14099947]
[1731762324852,3.14334,3181.4,3180.8,6.28484947]
[1731762325140,3.2888172,3181.8,3180.8,6.28484947]
[1731762325341,3.14301,3181.7,3180.9,6.28468947]
[1731762325499,3.2888072,3181.8,3180.9,6.28473947]
[1731762325703,3.14312,3181.6,3181.0,0.94257389]
[1731762325906,3.14312,3181.6,3181.0,4.08622389]
[1731762326123,3.91991254,3181.8,3181.1,3.14356]
[1731762326332,3.14299,3181.7,3181.2,0.40861339]
[1731762326735,3.91987254,3181.8,3181.2,0.40861339]
[1731762326900,3.2887872,3181.8,3181.2,0.40861339]
[1731762327334,0.1459172,3181.8,3181.3,3.14328]
[1731762327539,0.1459172,3181.8,3181.6,3.14299]
[1731762327899,0.1459172,3181.8,3181.4,3.14326]
[1731762328323,0.1459172,3181.8,3181.2,0.40861339]
[1731762328324,0.1459172,3181.8,3181.5,3.14309]
[1731762328535,0.1459172,3181.8,3181.2,3.55207339]
[1731762328729,0.1459172,3181.8,3181.4,3.14323]
[1731762328954,0.1459172,3181.8,3181.5,3.14315]
[1731762329470,0.1459172,3181.8,3181.6,3.14307]
[1731762329819,0.1459172,3181.8,3181.3,3.79855734]
[1731762329820,0.1459172,3181.8,3181.7,3.14297]
[1731762330023,0.00088,3182.9,3182.3,3.0]
[1731762330266,0.00088,3182.9,3182.8,9.70298367]
[1731762330423,0.00088,3182.9,3182.8,44.70298367]
[1731762330620,0.00088,3182.9,3182.8,41.14099947]
[1731762330866,0.00088,3182.9,3181.8,0.314297]
[1731762331165,3.14248,3182.2,3181.5,6.14315]
[1731762331333,3.14238,3182.3,3181.5,3.0]
[1731762331537,0.62620401,3182.9,3181.3,0.65520734]
[1731762331538,3.01110367,3182.7,3181.3,0.65520734]
[1731762331725,3.01110367,3182.7,3180.3,35.0]
[1731762331726,3.14354,3181.2,3180.1,3.14455]
[1731762332109,3.14377,3180.9,3180.2,3.51639076]
[1731762332359,3.14354,3181.2,3180.3,3.14434]
[1731762332536,3.14354,3181.2,3180.4,3.49588108]
[1731762332731,0.01,3182.1,3180.2,0.37197076]
[1731762332732,3.14307,3181.6,3180.7,3.14396]
[1731762332959,3.14316,3181.6,3180.7,3.14387]
[1731762333127,3.14316,3181.6,3180.8,3.14383]
[1731762333532,3.14301,3181.7,3180.9,0.06286753]
[1731762333841,3.14301,3181.7,3181.0,3.46429975]
[1731762334164,3.14275,3182.0,3181.0,0.32066975]
[1731762334324,3.14249,3182.2,3181.4,3.14326]
[1731762334531,3.1423,3182.4,3181.0,3.55]
[1731762334532,3.14228,3182.4,3181.0,3.55]
[1731762334876,0.63280201,3182.7,3182.1,3.14254]
[1731762335030,3.14186,3182.9,3182.2,38.14246]
[1731762335228,3.14186,3182.9,3182.3,3.14099947]
[1731762335543,6.28373,3182.9,3182.3,3.14099947]
[1731762335744,3.14198,3182.8,3182.3,3.14099947]
[1731762336144,3.14186,3182.9,3182.3,3.14099947]
[1731762336442,3.14228,3182.4,3181.7,6.14295]
[1731762336759,3.14149,3183.2,3182.0,3.0]
[1731762336945,3.14205,3182.7,3182.0,3.0]
[1731762337334,3.14227,3182.5,3181.8,0.928599]
[1731762337656,3.14248,3182.2,3181.8,0.928599]
[1731762337862,3.14248,3182.2,3181.4,6.14321]
[1731762338063,3.14248,3182.2,3181.4,3.0]
[1731762338274,3.14248,3182.2,3181.5,3.14309]
[1731762338769,3.14229,3182.4,3181.7,3.14288]
[1731762339067,0.01,3183.2,3181.8,0.314288]
[1731762339265,3.14228,3182.4,3181.6,3.14302]
[1731762339438,0.01,3183.2,3181.3,3.63956798]
[1731762339647,3.1424,3182.3,3181.6,3.14306]
[1731762339865,3.1424,3182.3,3181.6,3.757366]
[1731762340072,3.1424,3182.3,3181.6,0.614306]
[1731762340241,3.14211,3182.6,3181.7,3.14296]
[1731762340437,3.14229,3182.4,3181.7,3.14296]
[1731762340638,3.14229,3182.4,3181.8,0.3757266]
[1731762341753,3.14229,3182.4,3181.8,3.5185766]
[1731762341958,3.14229,3182.4,3181.8,0.3757266]
[1731762342285,3.14218,3182.5,3181.8,3.5185866]
[1731762342490,3.14218,3182.5,3181.9,0.35185866]
[1731762343645,3.14237,3182.4,3181.9,0.35185866]
[1731762344241,3.14237,3182.4,3181.8,0.3757266]
[1731762344439,3.14237,3182.4,3181.8,3.3757266]
[1731762347190,3.0,3183.5,3181.9,0.06284938]
[1731762347390,3.0,3183.5,3182.3,3.14237]
[1731762347597,3.14168,3183.1,3182.4,3.14225]
[1731762347755,3.14168,3183.1,3182.4,3.456507]
[1731762348494,0.1355633,3184.1,3182.4,3.456507]
[1731762348668,3.1416,3183.1,3182.4,3.456507]
[1731762349002,3.1416,3183.1,3182.4,0.314237]
[1731762349291,3.14166,3183.1,3182.4,0.314237]
[1731762349497,3.14166,3183.1,3182.4,3.456487]
[1731762349793,3.14166,3183.1,3182.5,0.6456487]
[1731762350208,3.14169,3183.0,3182.5,0.6456487]
[1731762350703,3.14176,3183.0,3182.5,0.6456487]
[1731762351390,3.1415,3183.2,3182.6,3.14207]
[1731762351596,3.1415,3183.2,3182.7,0.37877187]
[1731762351754,3.14137,3183.4,3182.7,3.52074187]
[1731762351949,3.14127,3183.5,3182.7,3.52074187]
[1731762351950,3.14139,3183.3,3182.7,3.52074187]
[1731762352395,3.14156,3183.2,3182.7,0.37877187]
[1731762352762,3.14159,3183.1,3182.7,0.37877187]
[1731762352979,3.14139,3183.3,3182.6,3.14201]
[1731762353193,3.1412,3183.5,3182.7,0.06283415]
[1731762353383,3.1412,3183.5,3182.9,3.14178]
[1731762353907,3.14103,3183.7,3182.9,3.14178]
[1731762354061,3.14103,3183.7,3182.9,0.628375]
[1731762354062,3.14119,3183.5,3182.9,0.628375]
[1731762354260,3.14119,3183.5,3182.7,3.14191]
[1731762354553,3.14108,3183.7,3182.9,3.14169]
[1731762354799,0.6178067,3184.0,3182.5,6.1421]
[1731762355046,3.14157,3183.2,3182.5,6.1421]
[1731762355333,0.6178067,3184.0,3182.7,3.14197]
[1731762355334,3.1413,3183.4,3182.7,3.14197]
[1731762355535,3.1411,3183.6,3182.9,3.14177]
[1731762355742,3.1411,3183.6,3182.6,3.14205]
[1731762355898,3.14118,3183.6,3182.8,3.1418]
[1731762356094,3.14118,3183.6,3183.0,3.14169]
[1731762356893,3.14122,3183.5,3182.8,3.770185]
[1731762357195,3.14087,3183.9,3183.3,3.14138]
[1731762357398,3.1407,3184.0,3183.3,3.455518]
[1731762357633,3.1407,3184.0,3183.3,0.314138]
[1731762357819,3.14072,3184.0,3183.3,0.314138]
[1731762358024,3.14072,3184.0,3183.4,3.14129]
[1731762358240,3.14072,3184.0,3183.3,3.14136]
[1731762358477,3.14088,3183.9,3183.0,3.0]
[1731762358768,3.14123,3183.5,3182.8,3.770255]
[1731762358926,3.1411,3183.6,3182.9,4.1330005]
[1731762359126,3.14083,3183.9,3182.9,0.9912205]
[1731762359353,0.61800822,3184.0,3183.3,3.14131]
[1731762359556,0.61800822,3184.0,3183.4,3.14119]
[1731762359856,3.75870822,3184.0,3183.4,3.14119]
[1731762360426,3.14084,3183.9,3183.2,3.14146]
[1731762360620,3.14084,3183.9,3183.3,0.314146]
[1731762360859,0.61800822,3184.0,3183.4,3.14126]
[1731762361037,0.61800822,3184.0,3183.3,0.314146]
[1731762361038,3.14097,3183.8,3183.3,0.314146]
[1731762361365,3.14095,3183.8,3183.3,0.314146]
[1731762361727,3.14095,3183.8,3182.8,0.628385]
[1731762361728,3.14126,3183.5,3182.8,6.770255]
[1731762362935,3.14101,3183.7,3183.0,6.14168]
[1731762363135,3.14109,3183.6,3183.0,6.14168]
[1731762363337,3.14096,3183.8,3183.1,3.20440694]
[1731762363522,3.14082,3183.9,3183.2,0.62044069]
[1731762363729,0.61800822,3184.0,3183.2,0.62044069]
[1731762364037,3.14099,3183.8,3183.2,0.62044069]
[1731762364669,3.14124,3183.5,3183.2,0.62044069]
[1731762364865,3.14124,3183.5,3183.0,3.0]
[1731762365161,3.14124,3183.5,3182.8,0.628385]
[1731762365324,0.61800822,3184.0,3182.8,0.628385]
[1731762365524,3.14116,3183.6,3182.9,3.3628385]
[1731762365769,3.1409,3183.8,3183.0,3.43886207]
[1731762365926,3.1409,3183.8,3183.1,3.37593513]
[1731762366130,3.14073,3184.0,3183.4,3.14124]
[1731762366468,3.14073,3184.0,3183.5,0.314124]
[1731762367267,3.14027,3184.5,3183.6,3.14106]
[1731762367438,3.14048,3184.3,3183.6,3.14106]
[1731762367630,3.14048,3184.3,3183.7,0.3455184]
[1731762367844,3.14071,3184.0,3183.5,3.314124]
[1731762368045,3.1403,3184.4,3183.5,3.455244]
[1731762368276,3.14077,3184.0,3183.5,0.314124]
[1731762368629,3.14077,3184.0,3183.3,3.1413]
[1731762368954,0.63340628,3184.5,3183.0,6.14167]
[1731762369163,3.141,3183.7,3183.2,3.0]
[1731762369468,3.1403,3184.4,3183.2,6.14141]
[1731762369469,3.14087,3183.9,3183.2,6.14141]
[1731762369775,3.14091,3183.8,3183.3,0.614141]
[1731762370253,3.14062,3184.1,3183.3,0.614141]
[1731762370456,3.14062,3184.1,3183.4,3.8168451]
[1731762370759,3.14041,3184.3,3183.6,3.14109]
[1731762371140,3.14031,3184.4,3183.7,3.14098]
[1731762371474,3.14042,3184.3,3183.5,3.14111]
[1731762371766,3.14057,3184.2,3183.6,0.314111]
[1731762371977,3.1406,3184.1,3183.6,0.314111]
[1731762372158,3.1406,3184.1,3183.7,0.3455221]
[1731762372364,3.14067,3184.1,3183.7,0.3455221]
[1731762372564,3.14001,3184.7,3183.4,3.14126]
[1731762372853,3.14064,3184.1,3183.4,3.14126]
[1731762373069,3.14041,3184.3,3183.4,3.14126]
[1731762373373,3.14051,3184.2,3183.6,3.14106]
[1731762373598,3.14051,3184.2,3183.7,0.314106]
[1731762373759,3.14041,3184.3,3183.7,3.455086]
[1731762373959,3.14041,3184.3,3183.7,3.14098]
[1731762374392,3.1403,3184.4,3183.5,3.14117]
[1731762374601,3.68987,3184.9,3183.7,3.14094]
[1731762374797,3.14042,3184.3,3183.7,3.14094]
[1731762375395,3.14046,3184.3,3183.5,0.628243]
[1731762375604,3.14106,3183.7,3183.1,6.45587]
[1731762375757,3.1412,3183.5,3182.9,0.3628385]
[1731762375964,3.1412,3183.5,3182.4,3.00150389]
[1731762376193,3.1412,3183.5,3182.2,0.01]
[1731762376194,3.14082,3183.9,3182.8,3.00150389]
[1731762376411,3.14042,3184.3,3183.1,3.00150389]
[1731762376708,3.1405,3184.2,3183.5,3.14112]
[1731762377476,3.0905,3184.2,3183.5,3.14112]
[1731762377681,3.1392,3185.6,3184.1,3.1406]
[1731762378004,3.89976616,3185.0,3184.3,3.14034]
[1731762378200,3.13996,3184.8,3184.2,0.31406]
[1731762378406,3.13996,3184.8,3184.1,3.14058]
[1731762378963,3.13985,3184.9,3184.2,3.14041]
[1731762379168,3.13985,3184.9,3184.3,3.1404]
[1731762379477,3.13994,3184.8,3184.1,3.14058]
[1731762379726,0.1459172,3185.0,3184.0,3.0]
[1731762379864,0.1459172,3185.0,3183.8,3.0]
[1731762379865,3.14031,3184.4,3183.8,3.0]
[1731762380066,3.14053,3184.2,3183.5,3.14117]
[1731762380301,3.14031,3184.4,3183.6,3.61426739]
[1731762380509,3.68981,3184.9,3183.6,0.61426739]
[1731762380665,3.1407,3184.0,3183.2,0.30015039]
[1731762380866,3.1409,3183.8,3183.2,0.30015039]
[1731762381281,3.14127,3183.5,3182.8,3.14186]
[1731762381879,3.14127,3183.5,3182.8,3.14187]
[1731762383025,3.00150389,3184.3,3182.9,3.0]
[1731762383026,3.14109,3183.6,3182.9,3.0]
[1731762383319,3.14109,3183.6,3182.9,3.62047011]
[1731762383533,3.14132,3183.4,3182.9,3.62047011]
[1731762385297,3.14109,3183.6,3182.9,3.62047011]
[1731762385688,3.14139,3183.4,3182.7,3.0]
[1731762385999,3.14139,3183.4,3182.7,3.14198]
[1731762386411,3.14139,3183.4,3182.8,3.0]
[1731762386746,3.1412,3183.5,3182.8,6.14187]
[1731762386886,3.1412,3183.5,3182.9,0.614187]
[1731762387088,3.1413,3183.4,3182.9,0.614187]
[1731762387323,3.1413,3183.4,3182.8,6.14187]
[1731762388830,3.1413,3183.4,3182.7,6.14197]
[1731762389426,3.1414,3183.3,3182.7,6.14197]
[1731762389628,3.1414,3183.3,3182.7,41.14197]
[1731762389927,3.1414,3183.3,3182.9,3.0]
[1731762390488,3.14128,3183.5,3182.7,35.0]
[1731762390700,3.1408,3183.9,3181.5,3.4710642]
[1731762390701,3.14227,3182.5,3181.5,3.4710642]
[1731762390898,3.14244,3182.3,3181.5,0.67500062]
[1731762391194,3.00150389,3183.1,3181.5,35.0]
[1731762391195,3.14277,3181.9,3181.5,35.0]
[1731762391896,3.1429,3181.8,3181.1,3.14355]
[1731762392088,3.14297,3181.7,3181.2,0.314355]
[1731762392431,3.14287,3181.8,3180.9,38.14375]
[1731762392583,3.14317,3181.5,3180.9,35.0]
[1731762392791,3.14317,3181.5,3181.0,3.14099947]
[1731762393084,3.14307,3181.6,3181.0,3.14099947]
[1731762393291,3.14307,3181.6,3180.9,3.14375]
[1731762393692,3.14317,3181.5,3180.8,35.0]
[1731762394694,3.14317,3181.5,3180.5,3.14415]
[1731762394893,3.00150389,3181.9,3180.6,0.314415]
[1731762395227,3.14348,3181.2,3180.6,0.37728966]
[1731762395430,3.14348,3181.2,3180.6,0.06287466]
[1731762395743,3.14378,3180.9,3180.3,38.14434]
[1731762396046,6.28762,3180.9,3180.3,35.0]
[1731762396238,3.14287,3181.8,3180.2,0.0377916]
[1731762396239,3.14409,3180.6,3180.2,0.0377916]
[1731762396530,3.14386,3180.8,3180.2,0.0377916]
[1731762396730,3.14406,3180.6,3180.2,0.0377916]
[1731762396934,3.14416,3180.5,3180.2,0.0377916]
[1731762397134,3.14427,3180.4,3180.2,0.0377916]
[1731762397591,3.14435,3180.3,3180.2,0.0377916]
[1731762397793,3.14418,3180.5,3180.2,0.0377916]
[1731762398021,3.14414,3180.6,3180.2,0.0377916]
[1731762398338,3.14429,3180.4,3180.2,0.0377916]
[1731762398493,3.14414,3180.6,3180.2,0.0377916]
[1731762398695,3.14368,3181.0,3180.2,3.24504163]
[1731762398929,3.14376,3180.9,3180.3,0.32450416]
[1731762399129,3.14376,3180.9,3180.2,0.0377916]
[1731762399330,3.14415,3180.6,3180.2,0.0377916]
[1731762399493,3.14426,3180.4,3180.2,0.0377916]
[1731762400131,3.14396,3180.7,3180.2,0.0377916]
[1731762400570,3.14408,3180.6,3180.2,0.0377916]
[1731762400874,3.14416,3180.5,3180.2,0.0377916]
[1731762401226,3.14397,3180.7,3180.2,0.0377916]
[1731762401428,3.14376,3180.9,3180.2,0.0377916]
[1731762401629,3.14387,3180.8,3180.2,0.0377916]
[1731762402064,0.55,3181.1,3180.2,0.0377916]
[1731762402272,3.14396,3180.8,3180.2,0.0377916]
[1731762402434,3.14407,3180.6,3180.2,0.0377916]
[1731762402866,3.14396,3180.8,3180.2,0.0377916]
[1731762403233,3.1437,3181.0,3180.2,0.35603476]
[1731762403584,3.1437,3181.0,3180.3,3.14432]
[1731762403771,3.76882969,3181.3,3180.2,0.35603476]
[1731762404076,3.76882969,3181.3,3180.5,3.14407]
[1731762404233,3.14352,3181.2,3180.5,3.14407]
[1731762404902,3.14361,3181.1,3180.3,6.2886]
[1731762405072,0.62544969,3181.3,3180.2,0.0377916]
[1731762405461,3.14384,3180.9,3180.2,0.65602276]
[1731762405981,3.14387,3180.8,3180.2,0.65602276]
[1731762406159,3.14358,3181.1,3180.3,3.14433]
[1731762406558,3.14347,3181.2,3180.3,3.20721424]
[1731762406795,3.14347,3181.2,3180.5,3.14411]
[1731762407095,3.14338,3181.3,3180.5,3.14411]
[1731762407494,3.14318,3181.5,3180.5,3.14411]
[1731762407695,3.14348,3181.2,3180.5,3.14411]
[1731762407868,3.14348,3181.2,3180.6,3.49705337]
[1731762408267,3.14318,3181.5,3180.6,3.49705337]
[1731762408464,3.14339,3181.3,3180.6,3.49705337]
[1731762408862,3.14339,3181.3,3180.6,3.49703337]
[1731762409066,3.14339,3181.3,3180.7,3.14393]
[1731762409295,3.14339,3181.3,3180.7,3.49362734]
[1731762409806,3.14339,3181.3,3180.7,0.34969734]
[1731762409967,3.14318,3181.5,3180.8,3.14379]
[1731762410174,3.14297,3181.7,3181.1,3.14355]
[1731762410374,3.1428,3181.9,3181.2,3.14345]
[1731762410817,3.1428,3181.9,3181.2,38.14345]
[1731762411136,3.1428,3181.9,3181.3,3.14331]
[1731762411312,3.1428,3181.9,3181.4,3.14099947]
[1731762411466,3.14289,3181.8,3181.1,3.20636479]
[1731762411667,3.14289,3181.8,3181.1,3.1435]
[1731762412082,3.14289,3181.8,3181.2,3.14346]
[1731762412307,3.14272,3182.0,3181.3,3.14334]
[1731762412479,3.14272,3182.0,3181.4,0.314334]
[1731762413211,3.77743354,3182.2,3181.4,0.314334]
[1731762413373,3.14277,3181.9,3181.4,0.314334]
[1731762413822,0.55,3181.8,3180.7,38.0]
[1731762414084,3.14367,3181.0,3180.5,3.0]
[1731762414268,0.55,3181.8,3180.2,0.0377916]
[1731762414467,3.14356,3181.1,3180.2,3.1822116]
[1731762414945,3.14337,3181.3,3180.2,0.0377916]
[1731762415153,3.1432,3181.5,3180.3,0.06287745]
[1731762415305,3.1432,3181.5,3180.2,3.03929549]
[1731762415306,3.14307,3181.6,3180.7,3.14389]
[1731762415505,3.143,3181.7,3180.2,6.18029496]
[1731762415506,3.14324,3181.5,3180.2,6.18029496]